bitfinex-derivatives/quotes_ETHF0:USTF0_20240920
["timestamp","ask_amount","ask_price","bid_price","bid_amount"]
[1726815256816,0.001,2566.0,2565.4,0.38977]
[1726815257109,0.001,2566.0,2565.3,0.38978]
[1726815257110,3.2078,2565.9,2565.3,0.38978]
[1726815257316,0.3907,2566.0,2565.0,3.2078]
[1726815257317,3.2088,2566.0,2565.1,0.38981]
[1726815257511,3.2088,2566.0,2565.2,0.38981]
[1726815257512,0.3897,2565.9,2565.2,0.38981]
[1726815257819,0.38971,2565.9,2565.2,0.38979]
[1726815258111,3.2088,2566.0,2565.5,0.38975]
[1726815258303,3.2088,2566.0,2565.3,3.2078]
[1726815258304,0.001,2566.0,2565.3,3.2078]
[1726815258506,0.001,2566.0,2565.5,0.38976]
[1726815258715,0.001,2566.0,2565.3,7.4278]
[1726815258915,0.001,2566.0,2565.5,0.38975]
[1726815259106,0.001,2566.0,2565.3,7.4278]
[1726815259107,0.001,2566.0,2565.0,3.2078]
[1726815259303,0.38971,2565.9,2565.3,0.38979]
[1726815260208,0.3897,2565.9,2565.3,0.38979]
[1726815260512,0.001,2566.0,2565.4,0.38977]
[1726815260513,0.39069,2566.0,2565.4,0.38977]
[1726815260704,0.001,2566.0,2565.3,0.38979]
[1726815260908,0.001,2566.0,2564.9,16.6288]
[1726815261107,0.001,2566.0,2565.5,0.38976]
[1726815261108,0.39069,2566.0,2565.5,0.38976]
[1726815261311,0.001,2566.0,2565.0,4.27913234]
[1726815261517,0.3907,2566.0,2565.4,0.38977]
[1726815261909,0.001,2566.0,2565.5,0.38976]
[1726815262110,0.3907,2566.0,2565.4,0.38977]
[1726815262420,0.38971,2565.9,2565.4,0.38978]
[1726815262617,0.3907,2566.0,2565.4,0.38978]
[1726815262817,0.001,2566.0,2565.5,0.38975]
[1726815263318,0.001,2566.0,2564.8,3.2078]
[1726815263319,3.2078,2565.8,2564.8,3.2078]
[1726815263614,3.8986,2566.0,2565.1,0.38982]
[1726815263615,3.2078,2565.9,2565.1,0.38982]
[1726815263821,0.38975,2565.7,2565.1,0.38982]
[1726815264119,0.38972,2565.8,2565.1,0.38982]
[1726815264316,0.38973,2565.7,2564.8,3.2078]
[1726815264512,0.38973,2565.7,2565.1,0.38981]
[1726815264717,0.001,2566.0,2565.2,3.2078]
[1726815265019,0.001,2566.0,2565.0,4.22]
[1726815265020,0.38972,2565.8,2565.0,4.22]
[1726815265314,0.38972,2565.8,2565.0,3.2078]
[1726815265315,3.2078,2565.8,2565.0,3.2078]
[1726815265720,0.001,2566.0,2565.0,3.2078]
[1726815265721,0.38971,2565.9,2565.0,3.2078]
[1726815265916,0.001,2566.0,2565.5,0.38975]
[1726815266414,0.001,2566.0,2565.3,7.4278]
[1726815266619,0.001,2566.0,2565.5,0.38976]
[1726815267120,0.001,2566.0,2565.4,0.7998]
[1726815267311,0.001,2566.0,2565.5,0.38976]
[1726815267507,0.001,2566.0,2565.6,0.38974]
[1726815267914,0.001,2566.0,2565.5,0.38976]
[1726815268222,0.001,2566.0,2565.4,1.18957]
[1726815268223,0.38971,2565.9,2565.4,1.18957]
[1726815268519,0.39069,2566.0,2565.5,0.38976]
[1726815269023,0.001,2566.0,2565.5,0.38976]
[1726815269723,0.39069,2566.0,2565.6,0.38975]
[1726815269921,0.001,2566.0,2565.4,0.7998]
[1726815270218,0.001,2566.0,2564.8,0.97467]
[1726815270219,3.2078,2565.5,2564.8,3.2078]
[1726815270414,3.2078,2565.5,2565.1,0.38981]
[1726815270722,3.2078,2565.5,2564.9,0.38985]
[1726815270927,4.0166,2565.5,2564.7,0.7814]
[1726815271219,3.99487,2565.5,2565.1,0.38982]
[1726815271823,3.99487,2565.5,2564.7,0.7814]
[1726815271824,3.99487,2565.5,2565.0,0.38983]
[1726815272121,0.38978,2565.4,2564.7,0.7814]
[1726815272316,3.2078,2565.2,2564.7,0.7814]
[1726815272530,3.2078,2565.2,2564.8,0.38986]
[1726815272531,3.59762,2565.2,2564.8,0.38986]
[1726815272911,3.2078,2565.2,2564.9,0.38985]
[1726815273120,0.3898,2565.3,2564.9,0.38985]
[1726815273320,0.3898,2565.3,2564.8,0.38986]
[1726815273623,3.6051,2565.5,2564.7,1.17128]
[1726815273825,3.59762,2565.2,2564.7,1.17128]
[1726815274015,0.38983,2565.1,2564.7,0.7814]
[1726815274216,0.38982,2565.2,2564.8,0.38987]
[1726815274414,0.38982,2565.2,2564.7,0.7814]
[1726815274415,0.38981,2565.2,2564.7,0.7814]
[1726815274617,3.2078,2565.3,2564.7,1.17127]
[1726815274812,3.2078,2565.3,2562.9,1.39839675]
[1726815274813,3.2078,2565.0,2564.0,4.198]
[1726815275120,3.2078,2565.0,2564.5,0.38991]
[1726815275121,3.59765,2565.0,2564.5,0.38991]
[1726815275511,0.38986,2564.9,2564.5,0.38991]
[1726815275717,0.38985,2564.9,2564.4,0.38993]
[1726815275916,0.38987,2564.8,2564.2,0.4087]
[1726815276122,0.38986,2564.9,2564.5,0.38991]
[1726815276316,0.38986,2564.9,2564.2,0.4087]
[1726815276317,3.2078,2565.0,2564.7,0.38988]
[1726815276517,1.37172,2565.5,2564.8,0.38987]
[1726815276518,3.5976,2565.3,2564.8,0.38987]
[1726815276716,4.5183,2565.5,2564.5,4.22]
[1726815276717,0.38979,2565.4,2564.5,4.22]
[1726815276918,0.78707,2565.5,2564.6,0.3899]
[1726815277115,0.78707,2565.5,2565.0,0.38983]
[1726815277322,0.38979,2565.4,2564.8,0.38985]
[1726815277622,0.3973,2565.5,2564.5,7.4278]
[1726815277923,3.59754,2565.7,2565.2,0.3898]
[1726815277924,3.2078,2565.7,2565.2,0.3898]
[1726815278127,3.2078,2565.7,2565.1,0.38982]
[1726815278318,3.2078,2565.7,2565.1,3.2078]
[1726815278715,3.2078,2565.7,2565.0,0.3836]
[1726815278918,0.38976,2565.6,2565.0,0.77342]
[1726815279132,3.2088,2566.0,2565.1,3.2078]
[1726815279526,3.2078,2565.7,2565.1,3.2078]
[1726815279821,3.2078,2565.7,2565.0,0.77343]
[1726815279822,0.38975,2565.6,2565.0,0.77343]
[1726815280018,3.2078,2565.5,2565.0,0.3836]
[1726815280720,3.2078,2565.5,2565.1,0.38982]
[1726815280923,3.2078,2565.5,2565.0,0.3836]
[1726815280924,3.59757,2565.5,2565.0,0.77343]
[1726815281122,3.2078,2565.5,2565.1,0.38982]
[1726815281329,3.59757,2565.5,2565.0,0.77344]
[1726815281918,3.59757,2565.5,2565.0,0.3836]
[1726815282225,0.38978,2565.4,2565.0,0.3836]
[1726815282826,3.2078,2565.5,2565.0,0.3836]
[1726815283026,3.2078,2565.5,2565.1,0.38982]
[1726815283226,3.2078,2565.5,2565.0,0.3836]
[1726815283527,0.38979,2565.4,2565.0,0.3836]
[1726815283930,0.38985,2565.0,2564.5,0.38991]
[1726815284322,3.2078,2565.2,2564.4,3.2078]
[1726815284521,0.38989,2564.7,2564.4,3.2078]
[1726815284825,3.59768,2564.8,2564.3,0.77333]
[1726815285014,3.59768,2564.8,2564.3,0.3834]
[1726815285015,0.38989,2564.7,2564.3,0.3834]
[1726815285217,3.59768,2564.8,2564.3,0.77334]
[1726815285423,0.38987,2564.8,2564.4,0.38993]
[1726815286023,0.38987,2564.8,2564.3,0.77334]
[1726815286225,3.59767,2564.8,2564.3,0.77334]
[1726815286425,0.38991,2564.6,2564.3,0.3834]
[1726815287022,0.38989,2564.7,2564.3,0.3834]
[1726815287429,0.3899,2564.6,2564.3,0.3834]
[1726815287619,0.4008,2564.7,2564.1,0.409]
[1726815287925,0.38992,2564.5,2564.1,0.79898]
[1726815288123,0.3899,2564.6,2564.2,0.38995]
[1726815288324,0.3899,2564.6,2564.1,0.79897]
[1726815288525,0.3899,2564.6,2563.9,0.3794]
[1726815288526,3.2078,2564.5,2563.9,0.3794]
[1726815288720,3.2078,2564.1,2563.9,0.3794]
[1726815288921,3.59778,2564.1,2563.9,0.3794]
[1726815289130,0.38995,2564.3,2563.9,0.7694]
[1726815289429,3.9897,2564.7,2564.1,0.38997]
[1726815289634,0.38992,2564.5,2564.1,0.38997]
[1726815289833,0.38994,2564.4,2564.0,0.38998]
[1726815290335,3.9897,2564.7,2563.9,0.3794]
[1726815290534,0.3899,2564.6,2564.1,0.38997]
[1726815290828,0.38992,2564.5,2564.1,0.38997]
[1726815291020,0.38992,2564.5,2563.9,0.3794]
[1726815291021,3.9897,2564.7,2563.9,3.5872]
[1726815291228,4.18304,2566.0,2564.6,4.21]
[1726815291423,3.2078,2565.7,2564.8,3.2078]
[1726815291827,0.38978,2565.4,2564.7,0.7829]
[1726815292024,3.2078,2565.6,2564.8,0.38987]
[1726815292229,0.38979,2565.4,2564.9,0.38985]
[1726815292433,3.2078,2565.3,2564.7,0.7829]
[1726815292731,3.2078,2565.3,2564.7,1.17278]
[1726815292732,3.5976,2565.3,2564.7,1.17278]
[1726815292926,3.5976,2565.3,2564.7,0.7829]
[1726815293126,3.2078,2565.3,2564.7,0.7829]
[1726815293523,0.38982,2565.2,2564.7,1.17278]
[1726815293726,3.5976,2565.3,2564.7,0.7829]
[1726815294026,3.5976,2565.3,2564.7,1.17278]
[1726815294428,3.5976,2565.3,2564.8,0.38987]
[1726815294628,0.38981,2565.2,2564.8,0.38987]
[1726815295036,0.38981,2565.2,2564.7,1.17278]
[1726815295236,0.38981,2565.2,2564.8,0.38987]
[1726815296136,0.38981,2565.2,2564.8,0.38986]
[1726815297027,0.38981,2565.2,2564.9,0.38985]
[1726815297429,0.38981,2565.2,2564.8,0.38986]
[1726815297933,3.2078,2565.3,2564.7,0.7829]
[1726815298232,4.121,2565.7,2565.2,3.2078]
[1726815298437,4.121,2565.7,2565.5,0.38975]
[1726815298734,0.001,2566.0,2565.3,4.21]
[1726815299029,0.001,2566.0,2565.7,0.38973]
[1726815299230,0.001,2566.0,2565.7,0.38972]
[1726815299639,0.3907,2566.0,2565.5,3.2078]
[1726815299934,0.38971,2565.9,2565.5,0.38975]
[1726815300433,0.38971,2565.9,2565.4,4.0137]
[1726815300628,0.001,2566.0,2565.4,4.0137]
[1726815300629,3.2088,2566.0,2565.4,4.0137]
[1726815300831,3.2088,2566.0,2565.4,0.78537]
[1726815301034,4.18303,2566.0,2565.1,0.38982]
[1726815301232,3.2078,2565.7,2564.9,0.4012]
[1726815301434,0.38977,2565.5,2564.9,0.4012]
[1726815301738,0.78476,2565.6,2564.9,0.4012]
[1726815301931,0.78476,2565.6,2565.2,0.38981]
[1726815302126,0.395,2565.6,2565.5,0.38976]
[1726815302327,4.122,2566.0,2565.5,0.38975]
[1726815302636,8.4146,2566.0,2565.5,0.38976]
[1726815302934,3.5975,2565.9,2565.4,0.38977]
[1726815303138,0.38972,2565.8,2565.4,0.38977]
[1726815303332,0.38972,2565.8,2565.3,0.38978]
[1726815303526,3.2078,2565.9,2565.2,0.3899]
[1726815303527,3.59751,2565.9,2565.2,0.3899]
[1726815303733,0.38972,2565.8,2565.4,0.38977]
[1726815303933,4.517,2566.0,2565.2,0.3899]
[1726815304236,0.38971,2565.9,2565.4,0.38977]
[1726815304431,0.38972,2565.8,2565.4,0.38977]
[1726815304734,0.38971,2565.9,2565.4,0.38977]
[1726815305035,0.38972,2565.8,2565.4,0.38977]
[1726815305427,4.517,2566.0,2565.2,0.3899]
[1726815305640,0.38972,2565.8,2565.4,0.38977]
[1726815305834,4.517,2566.0,2565.4,0.38977]
[1726815306134,4.517,2566.0,2565.4,6.9478]
[1726815306135,0.001,2566.0,2565.4,6.9478]
[1726815306328,0.001,2566.0,2565.9,0.3897]
[1726815307229,4.5025,2566.6,2566.3,0.38963]
[1726815307433,0.3815,2566.6,2566.2,0.38965]
[1726815307630,0.3815,2566.6,2566.1,3.59746]
[1726815307836,0.38962,2566.5,2566.0,0.38968]
[1726815308229,0.38964,2566.4,2565.9,0.3897]
[1726815308428,0.38966,2566.3,2565.8,4.35961]
[1726815308634,0.38966,2566.2,2565.8,3.9699]
[1726815308943,0.38965,2566.3,2565.9,0.3897]
[1726815309131,3.5893,2566.6,2565.9,0.3897]
[1726815309332,0.38965,2566.3,2565.8,4.35961]
[1726815309526,0.38967,2566.2,2565.8,3.9699]
[1726815309733,0.38967,2566.2,2565.8,4.35962]
[1726815309937,3.5893,2566.6,2565.8,3.5814]
[1726815309938,0.38968,2566.1,2565.8,3.5814]
[1726815310541,0.3897,2565.9,2565.8,3.2078]
[1726815310841,0.3897,2565.9,2565.5,0.38976]
[1726815311039,8.99184,2566.5,2565.3,3.9975]
[1726815311040,3.2078,2566.0,2565.3,3.9975]
[1726815311233,0.38972,2565.8,2565.4,0.38977]
[1726815311431,0.4069,2565.9,2565.6,0.38974]
[1726815311626,0.38968,2566.1,2565.6,3.2078]
[1726815311837,0.38968,2566.1,2565.7,0.38973]
[1726815312231,0.377,2566.2,2565.6,3.2078]
[1726815312432,0.38969,2566.0,2565.6,3.59754]
[1726815312942,0.38969,2566.0,2565.6,0.38974]
[1726815313239,0.377,2566.2,2565.4,3.74]
[1726815313240,0.38969,2566.1,2565.4,3.74]
[1726815313443,0.377,2566.2,2565.4,3.74]
[1726815313444,0.38969,2566.0,2565.4,3.74]
[1726815313640,0.38969,2566.0,2565.6,0.38974]
[1726815314141,0.4069,2566.4,2565.4,3.74]
[1726815314338,0.4069,2566.4,2565.9,0.3897]
[1726815314639,0.4069,2566.4,2565.9,3.5975]
[1726815315240,0.38965,2566.3,2565.9,3.5975]
[1726815315545,3.2078,2566.6,2566.0,0.38969]
[1726815315742,0.38965,2566.3,2566.0,0.3976]
[1726815315936,3.2078,2566.6,2566.0,0.3976]
[1726815316247,0.38963,2566.4,2566.0,0.3976]
[1726815316437,3.2078,2566.6,2566.0,0.3976]
[1726815316632,0.38965,2566.3,2566.0,0.3976]
[1726815317334,3.2078,2566.6,2566.0,0.3976]
[1726815317335,0.38966,2566.2,2566.0,0.3976]
[1726815317747,3.2078,2566.6,2566.0,0.3976]
[1726815317932,0.38966,2566.2,2566.0,0.3976]
[1726815318436,3.2078,2566.6,2566.0,0.3976]
[1726815318637,0.97404,2566.5,2566.0,0.3976]
[1726815318835,3.2078,2566.6,2566.0,0.3976]
[1726815319240,0.38965,2566.3,2566.0,0.78728]
[1726815320044,0.38965,2566.3,2566.0,0.3976]
[1726815320233,0.38966,2566.2,2566.0,0.3976]
[1726815320433,0.38965,2566.3,2566.0,0.3976]
[1726815320640,0.97404,2566.5,2565.9,3.2078]
[1726815320835,0.38966,2566.2,2565.9,3.2078]
[1726815321036,0.38966,2566.2,2565.9,3.5975]
[1726815321936,0.38966,2566.2,2565.6,3.5962]
[1726815322135,0.38966,2566.2,2565.9,0.3897]
[1726815322336,0.38966,2566.3,2565.9,0.38969]
[1726815323046,0.38966,2566.3,2565.6,3.5962]
[1726815323342,0.38966,2566.3,2565.9,0.38969]
[1726815323534,3.59746,2566.3,2565.9,0.38969]
[1726815323736,3.2078,2566.3,2565.9,0.38969]
[1726815324039,3.2078,2566.3,2565.6,3.5962]
[1726815324040,3.2078,2566.0,2565.6,0.3884]
[1726815324341,0.38973,2565.7,2565.6,0.3884]
[1726815324544,0.97427,2565.9,2565.3,0.3968]
[1726815324743,0.38977,2565.5,2565.3,0.3968]
[1726815326747,0.38975,2565.6,2565.3,0.78659]
[1726815327041,0.38975,2565.6,2565.3,0.3968]
[1726815327245,0.38975,2565.6,2565.3,0.78659]
[1726815327544,0.38975,2565.6,2565.3,0.3968]
[1726815327933,0.38975,2565.6,2565.3,0.78659]
[1726815328242,0.38966,2566.3,2565.9,0.3897]
[1726815328542,0.974,2566.6,2565.9,0.38969]
[1726815328742,4.59026,2566.7,2565.7,3.2078]
[1726815328937,4.59026,2566.7,2565.6,0.3768]
[1726815328938,4.18191,2566.4,2565.6,0.3768]
[1726815329141,4.18191,2566.4,2565.8,0.38971]
[1726815329142,0.38968,2566.1,2565.8,0.38971]
[1726815329439,0.38969,2566.0,2565.7,0.38972]
[1726815329640,0.38969,2566.0,2565.6,0.3768]
[1726815329641,0.38968,2566.1,2565.8,0.38972]
[1726815330550,0.38971,2565.9,2565.6,0.38974]
[1726815331443,4.1527,2566.2,2565.4,0.4083]
[1726815331444,0.3897,2566.0,2565.4,0.4083]
[1726815331649,0.38971,2565.9,2565.4,0.4083]
[1726815331847,0.4127,2566.2,2565.6,0.38974]
[1726815332037,0.38971,2565.9,2565.5,0.38975]
[1726815333344,0.38971,2565.9,2565.4,0.4083]
[1726815333544,0.38971,2565.9,2565.5,0.38976]
[1726815334745,0.38972,2565.8,2565.4,0.4083]
[1726815334949,0.3897,2565.9,2565.6,0.38975]
[1726815335545,0.3897,2565.9,2565.5,0.38975]
[1726815335748,0.38969,2566.0,2565.4,0.4083]
[1726815335943,0.38971,2565.9,2565.4,0.4083]
[1726815336139,0.38971,2565.9,2565.5,0.38975]
[1726815336340,0.38972,2565.8,2565.4,0.4083]
[1726815336745,3.2078,2566.1,2565.4,0.4083]
[1726815336949,0.38972,2565.9,2565.5,0.38976]
[1726815337153,3.2078,2565.8,2565.3,3.6046]
[1726815337356,0.38974,2565.7,2565.3,3.6046]
[1726815337545,0.38974,2565.7,2565.3,3.99438]
[1726815337752,0.38974,2565.7,2565.3,3.99439]
[1726815339256,0.38974,2565.7,2565.3,3.6046]
[1726815340050,0.38973,2565.7,2565.3,3.6046]
[1726815340456,0.38975,2565.6,2565.3,3.6046]
[1726815340758,0.38974,2565.7,2565.3,3.6046]
[1726815340958,0.38974,2565.7,2565.3,3.99439]
[1726815341753,0.3866,2566.0,2565.3,3.6046]
[1726815341952,0.38974,2565.7,2565.3,3.6046]
[1726815342461,0.38975,2565.6,2565.3,3.6046]
[1726815342663,0.38974,2565.7,2565.3,3.6046]
[1726815343254,3.04,2565.8,2565.3,3.6046]
[1726815343448,3.04,2565.6,2565.0,0.789]
[1726815343654,3.42976,2565.6,2565.1,0.99921012]
[1726815343956,4.5076,2566.0,2565.0,0.4122]
[1726815343957,3.04,2565.2,2565.0,0.4122]
[1726815344162,3.2078,2565.3,2564.7,0.3771]
[1726815344163,3.42982,2565.1,2564.7,0.3771]
[1726815344467,3.04,2565.1,2564.7,0.3771]
[1726815344664,3.04,2565.1,2564.7,0.76698]
[1726815344853,3.04,2565.1,2564.7,0.3771]
[1726815345160,0.7954,2565.2,2564.6,3.5861]
[1726815345161,3.04,2564.9,2564.6,3.5861]
[1726815345362,0.38987,2564.8,2564.6,3.5861]
[1726815345560,3.04,2564.9,2564.6,3.5861]
[1726815345761,3.42986,2564.9,2564.6,3.5861]
[1726815346063,0.38986,2564.9,2564.6,3.5861]
[1726815346257,0.38985,2565.0,2564.6,3.976]
[1726815346567,0.38985,2565.0,2564.6,3.5861]
[1726815346756,0.38986,2564.9,2564.6,3.5861]
[1726815347870,0.7954,2565.2,2564.6,3.5861]
[1726815348065,1.18522,2565.2,2564.6,3.5861]
[1726815348266,1.18522,2565.2,2564.8,0.38986]
[1726815349777,0.38985,2565.0,2564.6,3.5861]
[1726815349982,0.38985,2565.0,2564.6,3.97599]
[1726815350479,0.38986,2564.9,2564.6,3.97599]
[1726815350973,0.38985,2565.0,2564.6,3.97599]
[1726815351166,0.7954,2565.2,2564.6,3.97599]
[1726815351573,0.38985,2565.0,2564.6,3.97599]
[1726815352178,0.38987,2564.8,2564.6,0.3783]
[1726815352380,0.38986,2564.9,2564.6,0.7682]
[1726815352569,0.38986,2564.9,2564.6,0.3783]
[1726815354382,0.7954,2565.2,2564.6,0.3783]
[1726815354683,0.38987,2564.9,2564.6,0.3783]
[1726815355783,3.2078,2565.0,2564.6,0.3783]
[1726815356080,3.2078,2565.0,2564.3,0.76704]
[1726815356081,0.97464,2564.9,2564.3,0.76704]
[1726815356276,0.38992,2564.5,2564.1,0.79517]
[1726815356780,0.38994,2564.4,2564.1,0.4052]
[1726815356986,0.8089,2564.6,2564.1,0.4052]
[1726815357188,0.38995,2564.3,2564.1,0.4052]
[1726815357486,0.38996,2564.2,2564.1,0.4052]
[1726815357681,0.38997,2564.2,2563.9,0.3951]
[1726815357879,0.9748,2564.5,2563.9,0.3951]
[1726815357880,3.2078,2564.4,2563.9,0.3951]
[1726815358081,0.38998,2564.1,2563.9,0.3951]
[1726815358285,3.2078,2564.4,2563.9,0.3951]
[1726815358286,0.38997,2564.2,2563.9,0.3951]
[1726815358987,3.2078,2564.4,2563.9,0.3951]
[1726815359175,0.38998,2564.1,2563.7,0.78153]
[1726815359580,3.2078,2564.4,2563.7,0.3915]
[1726815359875,0.38998,2564.1,2563.7,0.78153]
[1726815360073,0.38997,2564.2,2563.8,0.39002]
[1726815360376,0.38995,2564.3,2563.8,0.39001]
[1726815360577,0.38996,2564.2,2563.7,0.3915]
[1726815360786,0.38996,2564.2,2563.7,0.78153]
[1726815361082,3.2078,2564.4,2563.7,0.3915]
[1726815361273,3.2078,2564.4,2563.8,0.39001]
[1726815361473,0.38996,2564.3,2563.7,0.78153]
[1726815361677,0.38996,2564.2,2563.7,0.78153]
[1726815363576,3.2078,2564.0,2563.3,3.2078]
[1726815363777,0.39001,2563.9,2563.4,0.39008]
[1726815363980,0.39002,2563.8,2563.3,1.16909]
[1726815364286,0.39001,2563.9,2563.3,3.9868]
[1726815364487,0.39001,2563.9,2563.4,0.39008]
[1726815364686,3.2078,2564.0,2563.3,3.9868]
[1726815364898,0.39001,2563.9,2563.4,0.39007]
[1726815366090,0.39001,2563.9,2563.3,3.9868]
[1726815366276,0.39001,2563.9,2563.4,0.39007]
[1726815366676,4.121,2564.3,2563.6,3.04]
[1726815366887,4.121,2564.3,2563.8,3.04]
[1726815367094,4.121,2564.3,2563.9,0.4046]
[1726815367095,4.51095,2564.3,2563.9,0.4046]
[1726815367390,6.63774,2564.4,2563.9,0.7946]
[1726815367591,6.63774,2564.4,2564.0,0.377]
[1726815367885,3.2078,2564.4,2564.0,0.377]
[1726815368085,3.2078,2564.4,2564.1,0.38997]
[1726815368279,3.2078,2564.4,2564.0,7.317]
[1726815368480,3.2078,2564.4,2564.3,0.38995]
[1726815368687,3.2078,2564.4,2564.2,0.38995]
[1726815368989,3.2078,2564.4,2564.2,3.9]
[1726815369186,3.2078,2564.4,2564.3,4.28995]
[1726815369788,3.2078,2564.4,2564.3,3.9]
[1726815369991,3.2078,2564.4,2564.0,0.377]
[1726815370189,3.2078,2564.4,2564.0,0.76698]
[1726815370385,3.59773,2564.4,2564.0,0.76699]
[1726815370589,3.2078,2564.4,2564.0,0.76699]
[1726815371088,3.59773,2564.4,2564.0,0.377]
[1726815371686,0.38995,2564.3,2564.0,0.377]
[1726815371887,3.2078,2564.4,2564.0,0.377]
[1726815371888,3.59774,2564.4,2564.0,0.377]
[1726815372279,3.2078,2564.4,2564.0,0.377]
[1726815372690,0.38995,2564.3,2564.0,0.377]
[1726815372886,3.2078,2564.4,2564.0,0.377]
[1726815373088,3.59774,2564.4,2564.0,0.377]
[1726815373887,0.38995,2564.3,2564.0,0.377]
[1726815374490,0.38997,2564.2,2563.9,0.4046]
[1726815374685,3.2078,2564.4,2563.9,0.4046]
[1726815374686,1.15355,2564.3,2563.9,0.4046]
[1726815374885,0.7636,2564.3,2563.9,0.4046]
[1726815375087,1.15355,2564.3,2563.9,0.4046]
[1726815375490,0.7636,2564.3,2563.9,0.7946]
[1726815375693,1.15355,2564.3,2563.9,0.7946]
[1726815375895,1.15355,2564.3,2563.9,0.4046]
[1726815376096,1.15355,2564.3,2563.9,0.7946]
[1726815376396,0.7636,2564.3,2563.9,0.4046]
[1726815376697,0.7636,2564.3,2564.0,0.38998]
[1726815376901,0.7636,2564.3,2563.9,0.7946]
[1726815377591,3.42997,2564.2,2563.9,0.4046]
[1726815377986,3.04,2564.2,2563.9,0.4046]
[1726815378186,3.2078,2564.4,2563.9,7.5124]
[1726815378396,3.59774,2564.4,2563.9,4.0024]
[1726815378599,3.42995,2564.3,2563.9,0.7946]
[1726815378997,0.38997,2564.2,2563.9,0.4046]
[1726815379294,0.77167,2564.2,2563.8,0.39001]
[1726815379494,1.15747,2564.2,2563.8,0.39001]
[1726815379895,3.42999,2564.1,2563.7,0.39003]
[1726815380299,3.04,2564.1,2563.8,0.39001]
[1726815380493,3.04,2564.1,2563.6,0.8053]
[1726815380692,1.15747,2564.2,2563.6,0.8053]
[1726815380888,0.7675,2564.2,2563.6,0.8053]
[1726815381095,3.59774,2564.4,2564.0,0.38999]
[1726815381399,3.2078,2564.4,2563.6,0.8053]
[1726815381601,3.2078,2564.4,2564.0,0.38999]
[1726815381902,3.2078,2564.4,2563.6,1.78044]
[1726815382102,3.59773,2564.4,2564.0,0.38998]
[1726815382900,0.38995,2564.3,2563.9,0.39]
[1726815383196,3.2078,2564.4,2563.6,0.8053]
[1726815383396,3.2078,2564.4,2564.0,0.38999]
[1726815383397,3.59774,2564.4,2564.0,0.38999]
[1726815383603,3.59774,2564.4,2564.3,0.38995]
[1726815383604,3.2078,2564.4,2564.3,0.38995]
[1726815383994,3.2078,2564.4,2564.3,4.28995]
[1726815384705,7.3288,2564.6,2564.3,3.9]
[1726815385004,4.121,2564.6,2564.2,0.38995]
[1726815385195,3.04,2564.5,2563.9,0.4055]
[1726815385400,3.42993,2564.5,2563.9,0.4055]
[1726815385802,3.04,2564.5,2564.1,0.38996]
[1726815386002,3.04,2564.5,2564.2,0.38996]
[1726815386602,3.04,2564.5,2563.9,0.4055]
[1726815387002,3.2078,2564.7,2564.3,0.38994]
[1726815387199,3.2078,2564.7,2563.9,0.4055]
[1726815387502,3.2078,2564.7,2564.1,3.2078]
[1726815387810,3.59769,2564.7,2564.3,0.38994]
[1726815388105,4.121,2565.0,2564.2,4.3036]
[1726815388307,0.38986,2564.9,2564.3,0.3768]
[1726815388604,0.38986,2564.9,2564.5,0.38991]
[1726815388805,3.42986,2564.9,2564.5,0.38991]
[1726815389201,3.04,2564.9,2564.3,0.3768]
[1726815389403,3.42986,2564.9,2564.5,0.38991]
[1726815389711,0.38987,2564.8,2564.4,0.38992]
[1726815390011,3.42986,2564.9,2564.5,0.38991]
[1726815390205,3.04,2564.7,2564.3,0.3768]
[1726815390506,3.04,2564.5,2563.8,7.4058]
[1726815390700,3.42992,2564.5,2564.1,0.38997]
[1726815390901,3.04,2564.5,2564.2,0.38996]
[1726815391103,3.4535,2564.5,2564.2,0.38996]
[1726815391300,0.4135,2564.5,2564.3,0.38995]
[1726815391506,0.4135,2564.5,2564.2,0.38996]
[1726815391706,0.4135,2564.5,2563.9,0.7709]
[1726815391907,0.4135,2564.5,2564.1,3.2078]
[1726815392110,0.4135,2564.5,2564.2,0.38995]
[1726815392998,4.51086,2564.9,2564.5,0.38991]
[1726815393209,4.121,2564.9,2564.6,0.38989]
[1726815394012,4.51086,2564.9,2564.5,0.38991]
[1726815395505,4.121,2564.9,2564.1,6.2478]
[1726815395903,4.51086,2564.9,2564.5,0.38991]
[1726815396314,4.121,2564.9,2564.4,0.38992]
[1726815396522,4.121,2564.9,2564.1,10.7268]
[1726815396713,4.51086,2564.9,2564.5,0.38991]
[1726815397014,4.121,2564.9,2564.1,10.7268]
[1726815397215,4.51086,2564.9,2564.5,0.38991]
[1726815397407,3.42987,2564.8,2564.1,7.6868]
[1726815397607,3.04,2564.8,2564.2,0.60957423]
[1726815397808,3.04,2564.8,2564.6,0.38989]
[1726815398209,0.76974,2565.0,2564.5,0.38991]
[1726815398210,0.38986,2564.9,2564.5,0.38991]
[1726815398412,3.4199,2565.0,2564.1,10.7268]
[1726815398614,0.38985,2564.9,2564.5,0.3899]
[1726815399011,3.4199,2565.0,2564.5,3.2078]
[1726815399215,3.04,2565.0,2564.5,3.2078]
[1726815399414,3.9753,2565.1,2564.9,0.38985]